[Event "*** SCC Grand Prix: Titled Tuesday Blitz"]
[Site "Chess.com"]
[Date "2020.06.09"]
[Round "4"]
[White "Funo09"]
[Black "Rodalquilar"]
[Result "1-0"]
[WhiteElo "2816"]
[BlackElo "2636"]
[TimeControl "180+1"]
[EndTime "9:38:23 PDT"]
[Termination "Funo09 won by checkmate"]

1. e4 {[%clk 0:03:00.9]} 1... d5 {[%clk 0:02:59]} 2. exd5 {[%clk 0:03:00.5]}
2... Qxd5 {[%clk 0:02:59.9]} 3. Nc3 {[%clk 0:03:01]} 3... Qa5 {[%clk 0:02:59.4]}
4. d4 {[%clk 0:03:01.2]} 4... Nf6 {[%clk 0:02:59.7]} 5. Bd2 {[%clk 0:03:00.7]}
5... Bf5 {[%clk 0:02:48.6]} 6. Bc4 {[%clk 0:02:54.8]} 6... Qb4 {[%clk
0:02:47.8]} 7. Bb3 {[%clk 0:02:36.5]} 7... Qxd4 {[%clk 0:02:44.2]} 8. Nf3 {[%clk
0:02:36.7]} 8... Qd8 {[%clk 0:02:33.5]} 9. Ne5 {[%clk 0:02:34.6]} 9... e6 {[%clk
0:02:33.1]} 10. Qf3 {[%clk 0:02:34.8]} 10... Nbd7 {[%clk 0:01:36.2]} 11. Nxf7
{[%clk 0:02:16.6]} 11... Kxf7 {[%clk 0:01:37.1]} 12. Qxf5 {[%clk 0:02:16.8]}
12... Nc5 {[%clk 0:01:37]} 13. Qf3 {[%clk 0:02:10.7]} 13... Nxb3 {[%clk
0:01:34.7]} 14. axb3 {[%clk 0:02:11.6]} 14... c6 {[%clk 0:01:32.6]} 15. g4
{[%clk 0:01:46.3]} 15... Kg8 {[%clk 0:01:16.4]} 16. O-O-O {[%clk 0:01:43.6]}
16... Nd5 {[%clk 0:01:12]} 17. Rhe1 {[%clk 0:01:40.8]} 17... Qf6 {[%clk
0:01:05.1]} 18. Qxf6 {[%clk 0:01:36.7]} 18... Nxf6 {[%clk 0:01:06]} 19. g5
{[%clk 0:01:32.1]} 19... Ng4 {[%clk 0:01:06.4]} 20. Rxe6 {[%clk 0:01:30.2]}
20... Nxh2 {[%clk 0:01:06.7]} 21. Bf4 {[%clk 0:01:24.2]} 21... Nf3 {[%clk
0:00:53.4]} 22. Rd7 {[%clk 0:01:14.7]} 22... Bc5 {[%clk 0:00:32.2]} 23. Ne4
{[%clk 0:01:09.8]} 23... Bd4 {[%clk 0:00:21.6]} 24. c3 {[%clk 0:01:03.6]} 24...
Rf8 {[%clk 0:00:06]} 25. cxd4 {[%clk 0:00:59.8]} 25... Rxf4 {[%clk 0:00:06.2]}
26. Nf6+ {[%clk 0:00:59.8]} 26... gxf6 {[%clk 0:00:02.2]} 27. Re8# {[%clk
0:00:59.6]} 1-0

[Event "*** SCC Grand Prix: Titled Tuesday Blitz"]
[Site "Chess.com"]
[Date "2020.06.09"]
[Round "4"]
[White "ChelsieMonica"]
[Black "babyking1205"]
[Result "0-1"]
[WhiteElo "2367"]
[BlackElo "2557"]
[TimeControl "180+1"]
[EndTime "9:38:24 PDT"]
[Termination "babyking1205 won by resignation"]

1. c4 {[%clk 0:03:00.9]} 1... e5 {[%clk 0:02:58.5]} 2. Nc3 {[%clk 0:02:59.6]}
2... Nf6 {[%clk 0:02:58.8]} 3. Nf3 {[%clk 0:02:59.1]} 3... Nc6 {[%clk
0:02:56.8]} 4. d4 {[%clk 0:02:58.5]} 4... exd4 {[%clk 0:02:56.2]} 5. Nxd4 {[%clk
0:02:58.4]} 5... Bb4 {[%clk 0:02:56.8]} 6. e3 {[%clk 0:02:57.1]} 6... Bxc3+
{[%clk 0:02:55.7]} 7. bxc3 {[%clk 0:02:56.4]} 7... O-O {[%clk 0:02:56.4]} 8. Bd3
{[%clk 0:02:56.1]} 8... Ne5 {[%clk 0:02:55.2]} 9. Be2 {[%clk 0:02:55.8]} 9... c6
{[%clk 0:02:54.5]} 10. O-O {[%clk 0:02:55.9]} 10... Re8 {[%clk 0:02:53.5]} 11.
f4 {[%clk 0:02:15.7]} 11... Ng6 {[%clk 0:02:49.2]} 12. f5 {[%clk 0:02:16.6]}
12... Ne5 {[%clk 0:02:47.6]} 13. g4 {[%clk 0:02:17.2]} 13... Ne4 {[%clk
0:02:45.3]} 14. Qe1 {[%clk 0:02:17]} 14... d5 {[%clk 0:02:43.9]} 15. cxd5 {[%clk
0:02:07.7]} 15... cxd5 {[%clk 0:02:44.8]} 16. Bb2 {[%clk 0:01:45.5]} 16... h5
{[%clk 0:02:35.5]} 17. f6 {[%clk 0:01:14.1]} 17... Nxf6 {[%clk 0:02:28.9]} 18.
g5 {[%clk 0:01:13.5]} 18... Nfg4 {[%clk 0:02:17.3]} 19. Qh4 {[%clk 0:01:10.3]}
19... Nxe3 {[%clk 0:02:07.7]} 20. Rf2 {[%clk 0:01:03.2]} 20... g6 {[%clk
0:02:03.5]} 21. h3 {[%clk 0:00:50.2]} 21... N5c4 {[%clk 0:01:49]} 22. Bc1 {[%clk
0:00:32.9]} 22... Re4 {[%clk 0:01:44.3]} 23. Rf4 {[%clk 0:00:28.2]} 23... Re5
{[%clk 0:01:27.7]} 24. Nf3 {[%clk 0:00:14.9]} 24... Re8 {[%clk 0:01:18.6]} 25.
Qg3 {[%clk 0:00:14.5]} 25... Nf5 {[%clk 0:01:17.1]} 26. Rxf5 {[%clk 0:00:13.6]}
26... Bxf5 {[%clk 0:01:17.7]} 27. Bxc4 {[%clk 0:00:12.2]} 27... dxc4 {[%clk
0:01:17.7]} 28. Bf4 {[%clk 0:00:13.1]} 28... Qd3 {[%clk 0:01:16.9]} 29. Rf1
{[%clk 0:00:13.3]} 29... Rad8 {[%clk 0:01:12.1]} 30. Qf2 {[%clk 0:00:09.3]}
30... Re2 {[%clk 0:01:11]} 31. Qc5 {[%clk 0:00:08.1]} 31... Bxh3 {[%clk
0:01:10.5]} 32. Be5 {[%clk 0:00:07.2]} 32... Rg2+ {[%clk 0:01:09.5]} 33. Kh1
{[%clk 0:00:07.2]} 33... Qxf1+ {[%clk 0:01:10.4]} 0-1

[Event "*** SCC Grand Prix: Titled Tuesday Blitz"]
[Site "Chess.com"]
[Date "2020.06.09"]
[Round "4"]
[White "Caracternin123"]
[Black "MikaelyanArman"]
[Result "1-0"]
[WhiteElo "2562"]
[BlackElo "2750"]
[TimeControl "180+1"]
[EndTime "9:38:29 PDT"]
[Termination "Caracternin123 won on time"]

1. d4 {[%clk 0:03:00.9]} 1... Nf6 {[%clk 0:02:59.7]} 2. Nf3 {[%clk 0:03:01.1]}
2... g6 {[%clk 0:03:00.2]} 3. g3 {[%clk 0:03:01.3]} 3... Bg7 {[%clk 0:03:00.2]}
4. Bg2 {[%clk 0:03:02]} 4... O-O {[%clk 0:03:00.8]} 5. O-O {[%clk 0:03:02.7]}
5... d6 {[%clk 0:02:59.9]} 6. c4 {[%clk 0:03:03.4]} 6... Nbd7 {[%clk 0:03:00.3]}
7. Nc3 {[%clk 0:03:04]} 7... e5 {[%clk 0:03:00.6]} 8. e4 {[%clk 0:03:04.5]} 8...
exd4 {[%clk 0:03:01]} 9. Nxd4 {[%clk 0:03:05.4]} 9... Re8 {[%clk 0:03:01]} 10.
b3 {[%clk 0:03:05.5]} 10... Nc5 {[%clk 0:02:59.6]} 11. Re1 {[%clk 0:03:05.4]}
11... Bg4 {[%clk 0:02:50.8]} 12. f3 {[%clk 0:03:04.4]} 12... Nfxe4 {[%clk
0:02:11.4]} 13. Nxe4 {[%clk 0:03:03.2]} 13... Nxe4 {[%clk 0:01:50.8]} 14. Bb2
{[%clk 0:02:44.5]} 14... Qf6 {[%clk 0:01:21.7]} 15. Qc2 {[%clk 0:01:42.4]} 15...
c5 {[%clk 0:00:54]} 16. fxg4 {[%clk 0:01:41]} 16... Ng5 {[%clk 0:00:35]} 17. h4
{[%clk 0:01:36.1]} 17... Ne6 {[%clk 0:00:30]} 18. Nxe6 {[%clk 0:01:34.4]} 18...
Qxb2 {[%clk 0:00:28.9]} 19. Qxb2 {[%clk 0:01:34.1]} 19... Bxb2 {[%clk
0:00:29.8]} 20. Nc7 {[%clk 0:01:34.6]} 20... Rxe1+ {[%clk 0:00:07.1]} 21. Rxe1
{[%clk 0:01:35.5]} 21... Rc8 {[%clk 0:00:04.9]} 22. Nd5 {[%clk 0:01:08.8]} 22...
Kf8 {[%clk 0:00:04.6]} 23. Re7 {[%clk 0:01:07.7]} 23... Rb8 {[%clk 0:00:02.4]}
24. Rd7 {[%clk 0:01:03.7]} 24... Be5 {[%clk 0:00:02.6]} 25. Kf2 {[%clk
0:01:03.3]} 25... a6 {[%clk 0:00:02.7]} 26. h5 {[%clk 0:01:00.7]} 26... g5
{[%clk 0:00:02]} 27. Be4 {[%clk 0:00:59.4]} 27... h6 {[%clk 0:00:01.5]} 28. Nb6
{[%clk 0:00:56.8]} 1-0

[Event "*** SCC Grand Prix: Titled Tuesday Blitz"]
[Site "Chess.com"]
[Date "2020.06.09"]
[Round "4"]
[White "ENEASZ"]
[Black "NidjatMamedov"]
[Result "0-1"]
[WhiteElo "2474"]
[BlackElo "2681"]
[TimeControl "180+1"]
[EndTime "9:38:34 PDT"]
[Termination "NidjatMamedov won by checkmate"]

1. e4 {[%clk 0:03:00.9]} 1... e5 {[%clk 0:02:59.9]} 2. Nf3 {[%clk 0:02:59.9]}
2... Nf6 {[%clk 0:02:58]} 3. Nxe5 {[%clk 0:02:54.3]} 3... d6 {[%clk 0:02:56.2]}
4. Nf3 {[%clk 0:02:54.1]} 4... Nxe4 {[%clk 0:02:54.7]} 5. d4 {[%clk 0:02:54.4]}
5... d5 {[%clk 0:02:54.6]} 6. Bd3 {[%clk 0:02:53.7]} 6... Be7 {[%clk 0:02:53.7]}
7. O-O {[%clk 0:02:52.4]} 7... Nc6 {[%clk 0:02:53.2]} 8. Re1 {[%clk 0:02:50.6]}
8... Bg4 {[%clk 0:02:51.1]} 9. c3 {[%clk 0:02:45.7]} 9... f5 {[%clk 0:02:48]}
10. Nbd2 {[%clk 0:02:44.8]} 10... O-O {[%clk 0:02:46.4]} 11. Qb3 {[%clk
0:02:36.7]} 11... Kh8 {[%clk 0:02:44.1]} 12. Qxb7 {[%clk 0:02:32.6]} 12... Rf6
{[%clk 0:02:33.7]} 13. Qb3 {[%clk 0:01:47.6]} 13... Rg6 {[%clk 0:02:30.7]} 14.
Bf1 {[%clk 0:01:40.2]} 14... Bd6 {[%clk 0:02:24.4]} 15. g3 {[%clk 0:01:28.3]}
15... f4 {[%clk 0:02:13.1]} 16. Qxd5 {[%clk 0:01:27.6]} 16... Nxf2 {[%clk
0:01:56.9]} 17. Kxf2 {[%clk 0:00:26.7]} 17... fxg3+ {[%clk 0:01:56.6]} 18. Kg1
{[%clk 0:00:27.2]} 18... gxh2+ {[%clk 0:01:55]} 19. Kh1 {[%clk 0:00:27.5]} 19...
Rb8 {[%clk 0:01:39.1]} 20. Bg2 {[%clk 0:00:24.5]} 20... Ne7 {[%clk 0:01:37.8]}
21. Qe4 {[%clk 0:00:24.1]} 21... Nf5 {[%clk 0:01:37.6]} 22. Nf1 {[%clk
0:00:21.7]} 22... h6 {[%clk 0:00:58.7]} 23. Ne5 {[%clk 0:00:21.3]} 23... Bxe5
{[%clk 0:00:57.3]} 24. Qxe5 {[%clk 0:00:20.9]} 24... Qh4 {[%clk 0:00:55]} 25. b4
{[%clk 0:00:14.2]} 25... Bf3 {[%clk 0:00:55]} 26. Re2 {[%clk 0:00:06.8]} 26...
Bxg2+ {[%clk 0:00:53.5]} 27. Rxg2 {[%clk 0:00:06.5]} 27... Rxg2 {[%clk 0:00:54]}
28. Kxg2 {[%clk 0:00:07]} 28... h1=Q# {[%clk 0:00:53.8]} 0-1

[Event "*** SCC Grand Prix: Titled Tuesday Blitz"]
[Site "Chess.com"]
[Date "2020.06.09"]
[Round "4"]
[White "Jadeit90"]
[Black "profofchess"]
[Result "1-0"]
[WhiteElo "2312"]
[BlackElo "2440"]
[TimeControl "180+1"]
[EndTime "9:38:41 PDT"]
[Termination "Jadeit90 won by checkmate"]

1. g3 {[%clk 0:03:00.9]} 1... c5 {[%clk 0:02:58.1]} 2. Bg2 {[%clk 0:03:00.2]}
2... Nc6 {[%clk 0:02:58.2]} 3. c4 {[%clk 0:02:59.9]} 3... g6 {[%clk 0:02:56.8]}
4. Nf3 {[%clk 0:02:59.6]} 4... Bg7 {[%clk 0:02:56.3]} 5. O-O {[%clk 0:03:00.5]}
5... Nh6 {[%clk 0:02:55]} 6. Nc3 {[%clk 0:03:00.8]} 6... Nf5 {[%clk 0:02:54.9]}
7. Rb1 {[%clk 0:03:01.2]} 7... h5 {[%clk 0:02:53.8]} 8. a3 {[%clk 0:03:01.5]}
8... h4 {[%clk 0:02:53.3]} 9. b4 {[%clk 0:03:01.7]} 9... d6 {[%clk 0:02:32]} 10.
b5 {[%clk 0:02:59.4]} 10... Ncd4 {[%clk 0:02:30.8]} 11. Nxd4 {[%clk 0:02:57.5]}
11... Nxd4 {[%clk 0:02:05.4]} 12. e3 {[%clk 0:02:56.7]} 12... Ne6 {[%clk
0:01:52.7]} 13. Bb2 {[%clk 0:02:56.2]} 13... Ng5 {[%clk 0:01:45.4]} 14. Nd5
{[%clk 0:02:51.6]} 14... Bxb2 {[%clk 0:01:43.9]} 15. Rxb2 {[%clk 0:02:52.5]}
15... Nh3+ {[%clk 0:01:43.5]} 16. Kh1 {[%clk 0:02:52.2]} 16... e6 {[%clk
0:01:40]} 17. Nf4 {[%clk 0:02:41.2]} 17... Nxf4 {[%clk 0:01:37.1]} 18. gxf4
{[%clk 0:02:38.9]} 18... h3 {[%clk 0:01:25.9]} 19. Bf3 {[%clk 0:02:36.6]} 19...
Qf6 {[%clk 0:01:23.6]} 20. Rb3 {[%clk 0:02:15.8]} 20... e5 {[%clk 0:01:22.5]}
21. fxe5 {[%clk 0:02:13.1]} 21... dxe5 {[%clk 0:01:23.4]} 22. Bd5 {[%clk
0:01:59.8]} 22... Kf8 {[%clk 0:01:15.3]} 23. Qf3 {[%clk 0:01:59.3]} 23... Qe7
{[%clk 0:00:48.7]} 24. Rbb1 {[%clk 0:01:38.9]} 24... Be6 {[%clk 0:00:48]} 25.
Bxb7 {[%clk 0:01:36.9]} 25... Rd8 {[%clk 0:00:43.2]} 26. Bd5 {[%clk 0:01:35.9]}
26... Bxd5 {[%clk 0:00:41.2]} 27. cxd5 {[%clk 0:01:36.8]} 27... e4 {[%clk
0:00:40.9]} 28. Qg3 {[%clk 0:01:27.9]} 28... Rxd5 {[%clk 0:00:39.2]} 29. a4
{[%clk 0:01:28]} 29... Rg5 {[%clk 0:00:33.7]} 30. Qf4 {[%clk 0:01:23.2]} 30...
Rf5 {[%clk 0:00:32.4]} 31. Qg3 {[%clk 0:01:23.1]} 31... Rf3 {[%clk 0:00:28.9]}
32. Qg4 {[%clk 0:01:18.7]} 32... Rh4 {[%clk 0:00:28.5]} 33. Qc8+ {[%clk
0:01:16.9]} 33... Kg7 {[%clk 0:00:28.5]} 34. b6 {[%clk 0:01:10.3]} 34... axb6
{[%clk 0:00:27.9]} 35. Rxb6 {[%clk 0:01:11.2]} 35... Qg5 {[%clk 0:00:23.5]} 36.
Rg1 {[%clk 0:01:10]} 36... Qh5 {[%clk 0:00:20.6]} 37. Rb8 {[%clk 0:01:06.2]}
37... Rxf2 {[%clk 0:00:16.5]} 38. Qf8+ {[%clk 0:01:05.8]} 38... Kf6 {[%clk
0:00:15.2]} 39. Rb6+ {[%clk 0:00:58.8]} 39... Ke5 {[%clk 0:00:11.6]} 40. Qxc5#
{[%clk 0:00:58.9]} 1-0

[Event "*** SCC Grand Prix: Titled Tuesday Blitz"]
[Site "Chess.com"]
[Date "2020.06.09"]
[Round "4"]
[White "blitzking1729"]
[Black "Twitch_ElhamBlitz05"]
[Result "1-0"]
[WhiteElo "2556"]
[BlackElo "2731"]
[TimeControl "180+1"]
[EndTime "9:38:44 PDT"]
[Termination "blitzking1729 won on time"]

1. d4 {[%clk 0:02:59.9]} 1... Nf6 {[%clk 0:02:59.2]} 2. Bg5 {[%clk 0:02:57.9]}
2... e6 {[%clk 0:02:59.6]} 3. Nd2 {[%clk 0:02:56.7]} 3... d5 {[%clk 0:02:59.4]}
4. e3 {[%clk 0:02:56.6]} 4... Be7 {[%clk 0:02:59.2]} 5. Bd3 {[%clk 0:02:55.2]}
5... O-O {[%clk 0:02:58.8]} 6. c3 {[%clk 0:02:55]} 6... h6 {[%clk 0:02:59.2]} 7.
Bh4 {[%clk 0:02:54]} 7... Nbd7 {[%clk 0:02:59.8]} 8. f4 {[%clk 0:02:49.9]} 8...
c5 {[%clk 0:02:59.5]} 9. Ngf3 {[%clk 0:02:49]} 9... cxd4 {[%clk 0:02:59.5]} 10.
exd4 {[%clk 0:02:48.6]} 10... b5 {[%clk 0:02:49.2]} 11. O-O {[%clk 0:02:43.7]}
11... b4 {[%clk 0:02:49.1]} 12. Ne5 {[%clk 0:02:43.5]} 12... bxc3 {[%clk
0:02:48.8]} 13. bxc3 {[%clk 0:02:43.2]} 13... Bb7 {[%clk 0:02:37.6]} 14. Rb1
{[%clk 0:02:33.5]} 14... Rb8 {[%clk 0:02:13.9]} 15. f5 {[%clk 0:02:23.9]} 15...
Ne4 {[%clk 0:02:11.8]} 16. Nxd7 {[%clk 0:01:59.5]} 16... Qxd7 {[%clk 0:02:11.7]}
17. Bxe7 {[%clk 0:01:57.2]} 17... Qxe7 {[%clk 0:02:11.6]} 18. Bxe4 {[%clk
0:01:57.2]} 18... dxe4 {[%clk 0:02:08.5]} 19. f6 {[%clk 0:01:56.8]} 19... gxf6
{[%clk 0:02:09.4]} 20. Qg4+ {[%clk 0:01:54.4]} 20... Kh7 {[%clk 0:01:45.4]} 21.
Qh4 {[%clk 0:01:51.5]} 21... Kg7 {[%clk 0:01:32]} 22. Nxe4 {[%clk 0:01:49.4]}
22... Bxe4 {[%clk 0:01:32.9]} 23. Rxb8 {[%clk 0:01:48.3]} 23... Rxb8 {[%clk
0:01:27.3]} 24. Qg3+ {[%clk 0:01:47.7]} 24... Bg6 {[%clk 0:01:27.9]} 25. Qxb8
{[%clk 0:01:47.3]} 25... Qa3 {[%clk 0:01:25.9]} 26. Qb3 {[%clk 0:01:41.7]} 26...
Qa6 {[%clk 0:01:17.4]} 27. c4 {[%clk 0:01:40.5]} 27... Qd6 {[%clk 0:01:13.9]}
28. d5 {[%clk 0:01:36.8]} 28... Qc5+ {[%clk 0:00:53.3]} 29. Kh1 {[%clk
0:01:34.6]} 29... exd5 {[%clk 0:00:16.1]} 30. cxd5 {[%clk 0:01:33.2]} 30... Qd6
{[%clk 0:00:11.6]} 31. Rd1 {[%clk 0:01:31.3]} 31... h5 {[%clk 0:00:11.2]} 32.
Qg3 {[%clk 0:01:29.2]} 32... Qc5 {[%clk 0:00:05.3]} 33. d6 {[%clk 0:01:28.4]}
33... Qc2 {[%clk 0:00:05.9]} 34. Qb3 {[%clk 0:01:18.8]} 34... Qe2 {[%clk
0:00:03.1]} 35. d7 {[%clk 0:01:16.8]} 35... Be4 {[%clk 0:00:03.1]} 36. Qg3+
{[%clk 0:01:16]} 36... Kh7 {[%clk 0:00:02.4]} 37. d8=Q {[%clk 0:01:15.7]} 37...
h4 {[%clk 0:00:01.2]} 38. Qxh4+ {[%clk 0:01:14.9]} 1-0

[Event "*** SCC Grand Prix: Titled Tuesday Blitz"]
[Site "Chess.com"]
[Date "2020.06.09"]
[Round "4"]
[White "maciejos95"]
[Black "Micki-taryan"]
[Result "0-1"]
[WhiteElo "2493"]
[BlackElo "3008"]
[TimeControl "180+1"]
[EndTime "9:38:45 PDT"]
[Termination "Micki-taryan won by resignation"]

1. e4 {[%clk 0:03:00.9]} 1... c6 {[%clk 0:02:59.5]} 2. d4 {[%clk 0:03:00.7]}
2... d5 {[%clk 0:03:00.4]} 3. Nc3 {[%clk 0:03:00.6]} 3... dxe4 {[%clk
0:03:00.7]} 4. Nxe4 {[%clk 0:03:00.8]} 4... Nd7 {[%clk 0:03:01.5]} 5. Ng5 {[%clk
0:02:58.7]} 5... h6 {[%clk 0:03:00.5]} 6. Ne6 {[%clk 0:02:55.3]} 6... Qb6 {[%clk
0:03:00.7]} 7. Nxf8 {[%clk 0:02:53.4]} 7... Nxf8 {[%clk 0:03:01.6]} 8. c3 {[%clk
0:02:49]} 8... Nf6 {[%clk 0:03:01.3]} 9. Bc4 {[%clk 0:02:47.1]} 9... Be6 {[%clk
0:02:59.5]} 10. Qb3 {[%clk 0:02:38.9]} 10... Bxc4 {[%clk 0:02:57.4]} 11. Qxc4
{[%clk 0:02:38.8]} 11... Ng6 {[%clk 0:02:56.4]} 12. Nf3 {[%clk 0:02:37.1]} 12...
e6 {[%clk 0:02:56.7]} 13. Qb3 {[%clk 0:02:33.7]} 13... O-O {[%clk 0:02:56.1]}
14. Qxb6 {[%clk 0:02:31.5]} 14... axb6 {[%clk 0:02:56]} 15. Be3 {[%clk
0:02:20.9]} 15... b5 {[%clk 0:02:55.8]} 16. a3 {[%clk 0:02:19.9]} 16... Nd5
{[%clk 0:02:55.8]} 17. O-O-O {[%clk 0:02:17.4]} 17... Nge7 {[%clk 0:02:53.8]}
18. Ne5 {[%clk 0:02:03.8]} 18... Nf5 {[%clk 0:02:54.1]} 19. Bd2 {[%clk
0:02:01.5]} 19... Nd6 {[%clk 0:02:53.3]} 20. f3 {[%clk 0:01:57.2]} 20... Nc4
{[%clk 0:02:53.5]} 21. Nxc4 {[%clk 0:01:56.4]} 21... bxc4 {[%clk 0:02:54.4]} 22.
Rde1 {[%clk 0:01:50.4]} 22... b5 {[%clk 0:02:49.1]} 23. g4 {[%clk 0:01:40.2]}
23... Rfe8 {[%clk 0:02:48.8]} 24. h4 {[%clk 0:01:37.7]} 24... f6 {[%clk
0:02:48.9]} 25. g5 {[%clk 0:01:36.3]} 25... h5 {[%clk 0:02:42.7]} 26. Rhg1
{[%clk 0:01:27.7]} 26... Kf7 {[%clk 0:02:42.6]} 27. g6+ {[%clk 0:01:20.9]} 27...
Ke7 {[%clk 0:02:41.9]} 28. Re4 {[%clk 0:01:08.8]} 28... Kd7 {[%clk 0:02:41.5]}
29. Rge1 {[%clk 0:01:07.1]} 29... Ne7 {[%clk 0:02:38.9]} 30. Rxe6 {[%clk
0:01:00.6]} 30... Nxg6 {[%clk 0:02:39.2]} 31. Rxe8 {[%clk 0:01:00.9]} 31... Rxe8
{[%clk 0:02:40]} 32. Rg1 {[%clk 0:01:01.3]} 32... Nxh4 {[%clk 0:02:38.9]} 33.
Rxg7+ {[%clk 0:01:01.3]} 33... Re7 {[%clk 0:02:39.5]} 34. Rg3 {[%clk 0:00:58.3]}
34... Nf5 {[%clk 0:02:39.6]} 35. Rg6 {[%clk 0:00:56.1]} 35... Rf7 {[%clk
0:02:30.1]} 36. Rg8 {[%clk 0:00:50.5]} 36... Rh7 {[%clk 0:02:29]} 37. Bf4 {[%clk
0:00:46.3]} 37... h4 {[%clk 0:02:28.2]} 38. Ra8 {[%clk 0:00:41.4]} 38... Ke6
{[%clk 0:02:25.5]} 39. Rc8 {[%clk 0:00:37.5]} 39... Ne7 {[%clk 0:02:24.9]} 40.
Rd8 {[%clk 0:00:35.7]} 40... h3 {[%clk 0:02:24.8]} 41. Bh2 {[%clk 0:00:35.6]}
41... Nf5 {[%clk 0:02:20.7]} 42. Re8+ {[%clk 0:00:33.4]} 42... Kf7 {[%clk
0:02:20.3]} 43. Rc8 {[%clk 0:00:31.7]} 43... Nh4 {[%clk 0:02:20.6]} 44. Rxc6
{[%clk 0:00:25.3]} 44... Nxf3 {[%clk 0:02:20.8]} 45. Rc7+ {[%clk 0:00:26]} 45...
Kg6 {[%clk 0:02:20.7]} 46. Rxh7 {[%clk 0:00:26.1]} 46... Kxh7 {[%clk 0:02:21.6]}
47. d5 {[%clk 0:00:20.1]} 47... Nxh2 {[%clk 0:02:16.1]} 48. d6 {[%clk
0:00:19.9]} 48... Nf3 {[%clk 0:02:16.6]} 49. d7 {[%clk 0:00:20.1]} 49... h2
{[%clk 0:02:17.5]} 50. d8=Q {[%clk 0:00:20.4]} 50... h1=Q+ {[%clk 0:02:18.4]}
51. Kc2 {[%clk 0:00:17.1]} 51... Qg2+ {[%clk 0:02:12.5]} 52. Kb1 {[%clk
0:00:16.1]} 52... Qf1+ {[%clk 0:02:12.3]} 53. Ka2 {[%clk 0:00:15.7]} 53... Qd3
{[%clk 0:02:13.2]} 54. Qxf6 {[%clk 0:00:14.7]} 54... Nd2 {[%clk 0:02:10.6]} 55.
Qh4+ {[%clk 0:00:12.8]} 55... Kg6 {[%clk 0:02:10.8]} 56. Qg4+ {[%clk 0:00:13]}
56... Kf6 {[%clk 0:02:11.4]} 57. Qf4+ {[%clk 0:00:10.1]} 57... Ke6 {[%clk
0:02:11.6]} 58. Qg4+ {[%clk 0:00:10.5]} 58... Ke5 {[%clk 0:02:11.3]} 59. Qd1
{[%clk 0:00:09.8]} 59... Ke4 {[%clk 0:02:12.2]} 60. Qh1+ {[%clk 0:00:09.2]}
60... Ke3 {[%clk 0:02:12.3]} 61. Qe1+ {[%clk 0:00:09.2]} 61... Kf3 {[%clk
0:02:11.9]} 62. Qd1+ {[%clk 0:00:09.1]} 62... Kf2 {[%clk 0:02:11.5]} 63. a4
{[%clk 0:00:07.3]} 63... bxa4 {[%clk 0:02:10.2]} 64. Ka3 {[%clk 0:00:06.7]}
64... Nb1+ {[%clk 0:02:09.1]} 65. Ka2 {[%clk 0:00:05.4]} 65... Qxd1 {[%clk
0:02:08.3]} 0-1

[Event "*** SCC Grand Prix: Titled Tuesday Blitz"]
[Site "Chess.com"]
[Date "2020.06.09"]
[Round "4"]
[White "Roman_Ovetchkin"]
[Black "letsgoband"]
[Result "0-1"]
[WhiteElo "2583"]
[BlackElo "2424"]
[TimeControl "180+1"]
[EndTime "9:38:45 PDT"]
[Termination "letsgoband won by resignation"]

1. d4 {[%clk 0:03:00.9]} 1... Nf6 {[%clk 0:02:55.8]} 2. c4 {[%clk 0:03:00.7]}
2... g6 {[%clk 0:02:55.6]} 3. Nc3 {[%clk 0:02:59.1]} 3... Bg7 {[%clk 0:02:48.7]}
4. e4 {[%clk 0:02:58.9]} 4... d6 {[%clk 0:02:49]} 5. Nf3 {[%clk 0:02:57.9]} 5...
O-O {[%clk 0:02:48.3]} 6. Be2 {[%clk 0:02:58.3]} 6... e5 {[%clk 0:02:47.4]} 7.
d5 {[%clk 0:02:58]} 7... a5 {[%clk 0:02:46.6]} 8. Bg5 {[%clk 0:02:57.3]} 8... h6
{[%clk 0:02:45.9]} 9. Be3 {[%clk 0:02:47.6]} 9... Na6 {[%clk 0:02:31.6]} 10. Nd2
{[%clk 0:02:47.1]} 10... c6 {[%clk 0:02:24.9]} 11. a3 {[%clk 0:02:43.4]} 11...
Nh7 {[%clk 0:02:08.4]} 12. b4 {[%clk 0:02:29.2]} 12... f5 {[%clk 0:02:03.2]} 13.
f3 {[%clk 0:02:28.8]} 13... Rf7 {[%clk 0:01:46.4]} 14. dxc6 {[%clk 0:02:06.6]}
14... bxc6 {[%clk 0:01:45.6]} 15. b5 {[%clk 0:02:06.1]} 15... Nc5 {[%clk
0:01:39.8]} 16. bxc6 {[%clk 0:02:05.8]} 16... Qc7 {[%clk 0:01:34]} 17. Nb3
{[%clk 0:01:53.7]} 17... Qxc6 {[%clk 0:01:20.9]} 18. Nxc5 {[%clk 0:01:50.5]}
18... dxc5 {[%clk 0:01:20.5]} 19. Qd5 {[%clk 0:01:48.8]} 19... Bb7 {[%clk
0:01:13.6]} 20. Qxc6 {[%clk 0:01:10.7]} 20... Bxc6 {[%clk 0:01:14.5]} 21. Bxc5
{[%clk 0:01:10.9]} 21... Ng5 {[%clk 0:01:14]} 22. Nd5 {[%clk 0:00:33.8]} 22...
fxe4 {[%clk 0:01:04.4]} 23. Ne7+ {[%clk 0:00:31.5]} 23... Rxe7 {[%clk
0:01:04.7]} 24. Bxe7 {[%clk 0:00:30.8]} 24... exf3 {[%clk 0:01:05.2]} 25. Bxg5
{[%clk 0:00:24.9]} 25... fxg2 {[%clk 0:01:00.8]} 26. Rg1 {[%clk 0:00:24.8]}
26... hxg5 {[%clk 0:01:00.9]} 27. Kf2 {[%clk 0:00:21.1]} 27... Rf8+ {[%clk
0:00:58.3]} 28. Kg3 {[%clk 0:00:19.7]} 28... e4 {[%clk 0:00:53.2]} 29. Rad1
{[%clk 0:00:19.6]} 29... e3 {[%clk 0:00:44.5]} 30. Rxg2 {[%clk 0:00:18.2]} 30...
Be5+ {[%clk 0:00:43.3]} 31. Kh3 {[%clk 0:00:18]} 31... Bxg2+ {[%clk 0:00:42.1]}
32. Kxg2 {[%clk 0:00:17.9]} 32... Rf2+ {[%clk 0:00:42.4]} 0-1